Cogmind - Beta 9.3 @@@ ROGUE MODE // 2019.12.26 @ 23:48:00 // Winter2019/RPGLIKE Player: badjay Result: Destroyed by G-34 Mercenary with Small Laser Performance ------------- Evolutions (1) 500 Regions Visited (3) 600 Robots Destroyed (32) 160 Value Destroyed (622) 622 Prototype IDs (7) 140 Alien Tech Used (0) 0 Bonus (0) 0 TOTAL SCORE: 2022 Bonus ------- None Cogmind --------- Core Integrity 0/600 Matter 290/300 Energy 141/160 System Corruption 0% Temperature Cool (151) Movement Core (100) Ox1 Location -9/Materials Parts ------- > --- POWER (1) -------- Light Nuclear Core > --- PROPULSION (1) --- (None) > --- UTILITY (2) ------ Experimental Sensor Array Improved Terrain Scanner > --- WEAPON (3) ------- Heavy EM Pulse Gun Improved EM Shotgun > --- INVENTORY (0) ---- (None) Peak State ------------ > --- POWER ------------ Light Nuclear Core > --- PROPULSION ------- VTOL Module > --- UTILITY ---------- Experimental Sensor Array Improved Terrain Scanner > --- WEAPON ----------- Heavy EM Pulse Gun Improved EM Shotgun > --- INVENTORY -------- (None) [Rating: 18] Favorites ----------- Power Light Ion Engine Engine Light Ion Engine Power Core Light Nuclear Core Propulsion Flight Unit Flight Unit Flight Unit Utility Improved Terrain Scanner Device Improved Terrain Scanner Weapon Light Assault Rifle Energy Gun Improved EM Shotgun Ballistic Gun Light Assault Rifle Launcher Rocket Launcher Build | -11 -10 -10 -9 ------- Run | Scr Mat Min Mat Slots Evolved 3 | 1 1 . 1 Power . | . . . . Propulsion . | . . . . Utility 1 | . . . 1 Weapon 2 | 1 1 . . Parts Attached 16 | 4 2 3 7 Power 4 | 1 . 1 2 Engine 2 | 1 . . 1 Core 2 | . . 1 1 Reactor . | . . . . Propulsion 2 | . 1 . 1 Treads . | . . . . Leg . | . . . . Wheel . | . . . . Hover . | . . . . Flight 2 | . 1 . 1 Utility 3 | 1 . 1 1 Device 3 | 1 . 1 1 Storage . | . . . . Processor . | . . . . Hackware . | . . . . Protection . | . . . . Artifact . | . . . . Weapon 7 | 2 1 1 3 Energy Gun 2 | . . . 2 Energy Cannon . | . . . . Ballistic Gun 4 | 2 1 . 1 Ballistic Cannon . | . . . . Launcher 1 | . . 1 . Special Weapon . | . . . . Impact Weapon . | . . . . Slashing Weapon . | . . . . Piercing Weapon . | . . . . Special Melee Weapon . | . . . . Unidentified Prototypes 3 | . . 1 2 Parts Lost . | . . . . Power . | . . . . Propulsion . | . . . . Utility . | . . . . Weapon . | . . . . Highest Loss Streak . | . . . . Average Slot Usage (%) 83 | . 87 83 78 Engine 10 | . 19 4 . Core 6 | . . 12 14 Flight 11 | . 9 16 14 Device 21 | . 19 16 27 Energy Gun 2 | . . . 8 Ballistic Gun 29 | . 38 33 12 Naked Turns . | . . . . Heaviest Build 13 | 7 7 8 13 Greatest Support 10 | 8 9 9 10 Greatest Overweight (x) 1 | 1 . . 1 Average Overweight (x) . | . . . . Largest Inventory Capacity . | . . . . Average Capacity . | . . . . Most Carried . | . . . . Average Carried . | . . . . Final Capacity . | . . . . Final Carried . | . . . . Class Distribution -------------------- 82% | Mutant 17% | Scout Dominant Class ---------------- Mutant | -10/Materials Mutant | -10/Mines Scout | -9/Materials Resources | -11 -10 -10 -9 ----------- Run | Scr Mat Min Mat Matter Collected 548 | 288 133 27 100 Remotely . | . . . . Salvage Created 1179 | 158 405 224 392 Parts 64 | 11 26 6 21 Haulers Intercepted 2 | . 1 . 1 Recyclers Shooed 1 | . . . 1 Parts Field Recycled . | . . . . Retrieved Matter . | . . . . Parts Self-Destructed . | . . . . Prevented . | . . . . Kills | -11 -10 -10 -9 ------- Run | Scr Mat Min Mat Combat Hostiles Destroyed 18 | . 10 2 6 Guns 17 | . 10 2 5 AOE 1 | . . . 1 Classes Destroyed 8 | 2 4 . 2 Worker 4 | . . . 4 Tunneler 4 | 4 . . . Hauler 2 | . 1 . 1 Recycler 2 | 1 . 1 . Watcher 2 | . 2 . . Swarmer 5 | . 5 . . Grunt 12 | . 5 2 5 Sentry 1 | . . . 1 Best Kill Streak 8 | 5 7 3 8 Combat Bots Only 7 | . 7 2 4 Max Kills in Single Turn 2 | 1 1 1 2 Gunslinging . | . . . . Exploded 1 | . . . 1 Melee . | . . . . Uniques/NPCs Destroyed . | . . . . Combat | -11 -10 -10 -9 -------- Run | Scr Mat Min Mat Damage Taken 1135 | . 483 129 523 Core 955 | . 405 111 439 Absorbed by Shields . | . . . . Redirected to Core 598 | . 264 64 270 Core Remaining (%) 77 | 100 . 55 . Volleys Fired 99 | 12 48 8 31 Largest 2 | 2 2 2 2 Hottest 90 | 40 40 40 90 Shots Fired 179 | 24 96 16 43 Gun 179 | 24 96 16 43 Cannon . | . . . . Launcher . | . . . . Special . | . . . . Kinetic 156 | 24 96 16 20 Thermal . | . . . . Explosive . | . . . . Electromagnetic 23 | . . . 23 Robot Hit Streak 21 | 7 12 21 20 Robot Miss Streak 3 | 3 2 . 2 Penetration Max . | . . . . Secondary Targets 4 | . 4 . . Max Gunslinging Chain 1 | . 1 . . Shots Hit Robots 140 | 17 68 15 40 Core Hits 64 | 9 27 8 20 Critical Hits 1 | . 1 . . Critical Kills . | . . . . Critical Parts Destroyed 1 | . 1 . . Melee Attacks . | . . . . Impact . | . . . . Slashing . | . . . . Piercing . | . . . . Sneak Attacks . | . . . . Combat Hostiles . | . . . . Follow-up Attacks . | . . . . Damage Inflicted 1530 | 181 571 126 652 Guns 1423 | 181 561 126 555 Cannons . | . . . . Explosions 97 | . . . 97 Melee . | . . . . Ramming 10 | . 10 . . Kinetic 1007 | 181 561 126 139 Thermal 97 | . . . 97 Explosive . | . . . . Electromagnetic 416 | . . . 416 Impact . | . . . . Slashing . | . . . . Piercing . | . . . . Highest Corruption . | . . . . Average Corruption . | . . . . Corruption Purged . | . . . . Overload Shots . | . . . . Overflow Damage . | . . . . Projectiles . | . . . . Explosions . | . . . . Melee . | . . . . Knockbacks . | . . . . Impact . | . . . . Kinetic . | . . . . Secondary . | . . . . Self-Inflicted Damage 5 | . 5 . . Shots . | . . . . Rammed 1 | . 1 . . Targets Rammed 1 | . 1 . . Kicked . | . . . . Crushed . | . . . . Highest Temperature 172 | . 17 22 172 Average Temperature 22 | . 5 6 37 Received Heat Transfer 489 | . 183 75 231 Siege Activations . | . . . . Robots Corrupted . | . . . . Combat Hostiles . | . . . . Parts Fried 3 | . . . 3 Impact Corruptions . | . . . . Robots Melted . | . . . . Combat Hostiles . | . . . . Parts Melted . | . . . . Heat Transferred 150 | . . . 150 Parts Sabotaged . | . . . . Parts Stolen . | . . . . Parts Stripped . | . . . . Power Chain Reactions 1 | . . . 1 Missiles Intercepted . | . . . . Alert | -11 -10 -10 -9 ------- Run | Scr Mat Min Mat Peak Influence 386 | 25 386 205 313 Average Influence 173 | 8 217 199 145 Maximum Alert Level 1 | . 1 1 1 Low Security (%) 57 | 100 51 13 76 Level 1 42 | . 48 86 23 Level 2 . | . . . . Level 3 . | . . . . Level 4 . | . . . . Level 5 . | . . . . High Security . | . . . . Max Security . | . . . . Squads Dispatched 2 | . 1 . 1 Investigation 1 | . 1 . . Extermination . | . . . . Reinforcement 1 | . . . 1 Assault . | . . . . Garrison . | . . . . Intercept . | . . . . Construction Impeded . | . . . . Haulers Reinforced . | . . . . Stealth | -11 -10 -10 -9 --------- Run | Scr Mat Min Mat Distress Signals 1 | . . . 1 Communications Jammed . | . . . . Distress Signals . | . . . . Times Spotted 35 | . 14 2 19 Peak Tracking Total 12 | . 6 2 12 Tactical Retreats 1 | . . . 1 Traps | -11 -10 -10 -9 ------- Run | Scr Mat Min Mat Traps Triggered 1 | . 1 . . Indirectly . | . . . . Trap Hack Attempts . | . . . . Triggered . | . . . . Disarmed . | . . . . Reprogrammed . | . . . . Reused . | . . . . Traps Extracted . | . . . . Installed . | . . . . Triggered . | . . . . Machines | -11 -10 -10 -9 ---------- Run | Scr Mat Min Mat Machines Disabled . | . . . . Max in Single Turn . | . . . . Machines Sabotaged . | . . . . Garrisons Compromised . | . . . . Overloaded Fab Kills . | . . . . Fab Network Shutdowns . | . . . . Hacking | -11 -10 -10 -9 --------- Run | Scr Mat Min Mat Machines Accessed 6 | . 5 . 1 Terminals 6 | . 5 . 1 Fabricators . | . . . . Repair Stations . | . . . . Recycling Units . | . . . . Scanalyzers . | . . . . Garrison Access . | . . . . Total Hacks 20 | . 19 . 1 Successful 14 | . 13 . 1 Failed 6 | . 6 . . Catastrophic 1 | . 1 . . Database Lockouts . | . . . . Manual 6 | . 6 . . Terminals 20 | . 19 . 1 Fabricators . | . . . . Repair Stations . | . . . . Recycling Units . | . . . . Scanalyzers . | . . . . Garrison Access . | . . . . Terminal Hacks 11 | . 10 . 1 Record 1 | . 1 . . Robot Analysis 2 | . 2 . . Prototype ID Bank 3 | . 3 . . Branch Access Points 2 | . 1 . 1 Alert Level 1 | . 1 . . Hauler Manifests 1 | . 1 . . Registered Components 1 | . 1 . . Fabricator Hacks . | . . . . Repair Station Hacks . | . . . . Recycling Unit Hacks . | . . . . Scanalyzer . | . . . . Garrison Access Hacks . | . . . . Unauthorized Hacks 7 | . 7 . . Terminals 3 | . 3 . . Botnet 3 | . 3 . . Fabricators . | . . . . Repair Stations . | . . . . Recycling Units . | . . . . Scanalyzers . | . . . . Garrison Access . | . . . . Data Cores Recovered . | . . . . Used . | . . . . Hacking Detections 5 | . 5 . . Full Trace Events . | . . . . Feedback Events . | . . . . Feedback Blocked . | . . . . Robot Schematics Acquired . | . . . . Robots Built . | . . . . Matter . | . . . . Time . | . . . . Total Robot Build Rating . | . . . . Part Schematics Acquired . | . . . . Parts Built . | . . . . Matter . | . . . . Time . | . . . . Total Part Build Rating . | . . . . Parts Repaired . | . . . . Time . | . . . . Parts Recycled . | . . . . Recycled Matter . | . . . . Retrieved Matter . | . . . . Retrieved Components . | . . . . Parts Scanalyzed . | . . . . Part Schematics Acquired . | . . . . Parts Damaged . | . . . . Bothacking | -11 -10 -10 -9 ------------ Run | Scr Mat Min Mat Used RIF Installer . | . . . . Robots Hacked . | . . . . Non-combat . | . . . . Combat . | . . . . Robot Hacks Applied . | . . . . Relay Couplers Released . | . . . . Robots Rewired . | . . . . Allies Hacked . | . . . . Hacks Repelled . | . . . . Allies | -11 -10 -10 -9 -------- Run | Scr Mat Min Mat Total Allies . | . . . . Largest Group . | . . . . Highest-Rated Group . | . . . . Highest-Rated Ally . | . . . . Total Orders . | . . . . Ally Attacks . | . . . . Total Damage . | . . . . Kills . | . . . . Allies Corrupted . | . . . . Allies Melted . | . . . . Intel | -11 -10 -10 -9 ------- Run | Scr Mat Min Mat Robot Analysis Total 2 | . 2 . . Derelict Logs Recovered 1 | . . 1 . Drone Launches . | . . . . Drone Recoveries . | . . . . Exploration | -11 -10 -10 -9 ------------- Run | Scr Mat Min Mat Turns Passed 792 | 81 370 123 218 Spaces Moved 1061 | 73 505 232 251 Core 317 | 73 242 . 2 Treads . | . . . . Legs . | . . . . Wheels . | . . . . Hover . | . . . . Flight 744 | . 263 232 249 Fastest Speed 40 | 50 40 40 40 Average Speed 45 | 51 44 40 51 Slowest Speed 120 | 100 50 40 120 Overloaded Moves . | . . . . Propulsion Burnouts . | . . . . Robots Hopped 5 | . . 5 . Cave-ins Triggered . | . . . . Exploration Rate (%) 40 | 3 83 52 24 Regions Visited 3 Branch Regions 1 Pre-discovered Areas . | . . . . Known Exits Taken 1 | . 1 . . Unknown Exits Taken 2 | 1 . 1 . Scrap Searched . | . . . . Spaces Dug . | . . . . Terrain Destroyed 3 | . . . 3 Melee . | . . . . Projectile . | . . . . AOE 3 | . . . 3 Actions | -11 -10 -10 -9 --------- Run | Scr Mat Min Mat Total 1203 | 92 568 243 300 Wait 7 | 4 . 3 . Move 1048 | 72 504 221 251 Hop 5 | . . 5 . Pick Up . | . . . . Fast Attach 15 | 4 2 3 6 Attach . | . . . . Detach . | . . . . Swap 1 | . . . 1 Drop 10 | . 1 3 6 Fire 99 | 12 48 8 31 Melee . | . . . . Ram 1 | . 1 . . Kick . | . . . . Crush . | . . . . Escape Stasis . | . . . . Rewire . | . . . . Trap . | . . . . Miscellaneous 17 | . 12 . 5 Route ------- -11/Scrapyard -10/Materials (discovered 3 exits: *Mat x2 / *Min) -10/Mines -9/Materials (discovered 3 exits: [*Mat] / Min / *Sto) History --------- Turn | Location | Event 4 | -11/Scrapyard | Discovered new exit (range 16) 14 | -11/Scrapyard | Upgraded with Weapon slot (x1) 82 | -11/Scrapyard | Entered Materials 161 | -10/Materials | Discovered new exit (range 7) 174 | -10/Materials | Discovered new exit (range 6) 299 | -10/Materials | Discovered new exit (range 16) 308 | -10/Materials | Core integrity fell below 50% 314 | -10/Materials | Build established: Mutant 345 | -10/Materials | Destroyed 7 combat bots 346 | -10/Materials | Identified exit to Mines 423 | -10/Materials | Reached level 2 424 | -10/Materials | Upgraded with Weapon slot (x1) 452 | -10/Materials | Entered Mines 500 | -10/Mines | Learned Materials security intel 511 | -10/Mines | Found a damaged Exp. Sensor Array with a note attached 513 | -10/Mines | Found Prototype Device 513 | -10/Mines | Identified Exp. Sensor Array 553 | -10/Mines | Discovered new exit (range 11) 557 | -10/Mines | Received a Rocket Launcher from a helpful Derelict 575 | -10/Mines | Entered Materials 577 | -9/Materials | Reached level 3 578 | -9/Materials | Upgraded with Utility slot (x1) 595 | -9/Materials | Discovered new exit (range 13) 641 | -9/Materials | Core integrity fell below 50% 716 | -9/Materials | Discovered new exit (range 15) 749 | -9/Materials | Identified exit to Mines 749 | -9/Materials | Identified exit to Storage 781 | -9/Materials | Reached level 4 787 | -9/Materials | Core integrity fell below 20% 793 | -9/Materials | Destroyed by G-34 Mercenary with Small Laser Last Messages --------------- Map updated. 00751_ W-16 Scout sends out distress signal. 00761_ G-34 Mercenary destroyed. 00768_ Destroyed Sml. Laser. 00770_ M-13 Machinist fits Backup Laser I on G-34 Mercenary. 00772_ U-05 Engineer destroyed. 00772_ Heat Sink fried. 00772_ Ion Engine fried. 00772_ Aluminum Leg fried. 00772_ G-34 Mercenary destroyed. 00778_ Used Protomatter to restore core integrity (+108, depleted) 00781_ G-34 Mercenary destroyed. 00781_ Chain reaction triggered in Ion Engine. 00781_ Reached level 4. 00781_ G-34 Mercenary destroyed. 00784_ Acquired Hvy. EM Pulse Gun. 00784_ M-13 Machinist fits Backup Power I on G-34 Mercenary. 00788_ Destroyed Melee Analysis Suite. 00791_ VTOL Module severed. 00791_ L-31 Rogue destroyed. Map ----- +----------------------------------------------------+ | | | | | | | | | | | | | | | | | ???????????#########???????###???#???????????????? | | ???????? ??# ???#?#?####?#???????????#????? | | ???????????# ]??#######?#??#####????##?#??? | | ???????????# ########??#?##"""#??#???????? | | ???????????# + #######"T"#########??? | | ?????? ?????####/##+## #??? | | ?????????# u #??? | | ?????????#??####### #??? | | ???????????######## ####/##### """ """ +??? | | ???????????####?### # ## """ """ # ?? | | ???????????###### # ## """ """ #?? | | ?#?????#?? ? ## < m # ## #??# | | ????? ??? ? ## ; ! ## #?#? | | ??? ???? ??## #;=;#########? #??? | | ? ? #??# """" ?# # %gg /T #### ##?? | | ? ??#### "?"" ## # =%*==* #### [[ #??? | | ?#?# """" ## # %=%= ####* [= ? | | #####?#####??#### # =@!= g % [! ? | | ?? # # =%% ####= " ? | | ??##?"?" """ ? # # %!!""" #### "%" ? | | ??## """ """? + + == """ #?#### ###### ?? | | ?##?"?? """ # # """ ##?# #????######?? | | #? ? ? # # ###?# ##??##?#??????? | | ###?#??####?##?## ##########???#######?#???????? | | ############### ##?####?#######??#????#?????? | | # ! ###?############?###????#???? | | " [%* ####????####??###?##????????? | | [# = #?#?##?#########??##????????? | | %####+########## ###########?##?##? ?????????? | | [##??? ? ###### #######?###??#?#????????????? | | [## """ ##?#?# ##?#??##?###??????????????? | | ## ?""?? ??#?###!!**[[#######???????????????????? | | #? "???? ##?###!!**[[###????#?##???????????????? | | ###?? ?? ###############?####??????????????????? | | ??? """ ? #?#?#####?#?#??##?#???????????????????? | | #?# """ #####?#?####??????????????????????????? | | ### "?"?????##?##??##???#???#????????????????????? | | #?# ? #??##?####??##????????????????????????? | | #??#######?#?##?#?#??#???????????????????????????? | | ##??#####? ????##?##??#?##???????????????????????? | | ?##?###### ???#??????????????????????????????????? | | ##?###???#?###?##??#?????????????????????????????? | +----------------------------------------------------+ Best States ------------- Heat Dissipation 25 Energy Generation 14 Energy Capacity 160 Matter Stores 300 Matter Capacity 300 Sight Range 16 Robot Scan Range 30 Terrain Scan Range 16 Terrain Scan Density 210 Evasion (%) 62 Item Schematics ----------------- None Robot Schematics ------------------ None Fabricated ------------ Nothing Alien Tech Used ----------------- None Achievements -------------- None Challenges ------------ None RPGLIKE | -11 -10 -10 -9 --------- Run | Scr Mat Min Mat Levels Raised 3 | . 1 . 2 XP Earned 7525 | 3000 1505 750 2270 XP Spent 5920 | 2920 800 . 2200 Upgrades 12 | 8 1 . 3 Utility Slot 1 | . . . 1 Weapon Slot 2 | 1 1 . . Mass Support 1 | 1 . . . Terrain Scan Density 2 | 2 . . . Ranged Accuracy 6 | 4 . . 2 Protomatter Created 152 | . 66 . 86 Integrity Restored 354 | . 246 . 108 Core 354 | . 246 . 108 Protomatter Decayed . | . . . . Game ------ Seed HugeSuspensionPit Manual? 0 Play Time 00:16:25 Cumulative 105.5 hours Start 2019.12.26 @ 23:34:40 End 2019.12.26 @ 23:48:00 Sessions 1 Manual Loads 0 Difficulty Rogue Special Mode Winter2019/RPGLIKE Game No. 128 Rogue 128 Adventurer 0 Explorer 0 Win Type - Total 10 Types 9/0/0/1/0/0/0 Lore% 54 Gallery% 63 Achievement% 57 Wizard Run 0 Options --------- ASCII 0 Keyboard 0 Movement Numpad Keybinds 0 Fullscreen 2 Font 18/SmallcapsGlow Map View 76x50 Tactical HUD 1 Map Filters NONE Filters NONE Steam 1 RUN: 1e375a40-ccae-4a8d-b549-99d2676ef025